fUSD/lending_fUSD_20260402
["ID","MTS","AMOUNT","RATE_DAILY","PERIOD"]
[419276388,1775092248302,-834.90166488,0.00016,2]
[419276392,1775092422306,150.0,0.00016,120]
[419276400,1775092612427,150.0,0.00016,120]
[419276448,1775092802621,150.0,0.00016,120]
[419276453,1775092989766,150.0,0.00016,120]
[419276458,1775093178088,150.0,0.00016,120]
[419276513,1775093434674,-624.03,9.142e-05,2]
[419276514,1775093434684,-397.58,9.332e-05,2]
[419276515,1775093434695,-1740.0,9.688e-05,2]
[419276516,1775093434706,-181.64467542,9.922e-05,2]
[419276517,1775093434718,-700.0,9.922e-05,2]
[419276518,1775093434728,-300.0,9.998e-05,2]
[419276519,1775093434738,-1200.0,9.998e-05,2]
[419276520,1775093434748,-300.0,9.998e-05,2]
[419276521,1775093434758,-300.0,9.998e-05,2]
[419276522,1775093434768,-792.0,9.999e-05,2]
[419276523,1775093434779,-184.44384423,0.0001,2]
[419276524,1775093434790,-1338.35518455,0.0001,2]
[419276525,1775093434800,-407.91755572,0.0001,2]
[419276526,1775093434810,-1390.0,0.00010131,2]
[419276527,1775093434820,-800.0,0.00010323,2]
[419276528,1775093434831,-1580.0,0.00010452,2]
[419276529,1775093434842,-500.0,0.000105,2]
[419276530,1775093434851,-500.0,0.000105,2]
[419276531,1775093434861,-500.0,0.000105,2]
[419276532,1775093434871,-165.99284076,0.000105,2]
[419276533,1775093434881,-502.22628462,0.000105,2]
[419276534,1775093434891,-1170.0,0.00010677,2]
[419276535,1775093434901,-1010.0,0.00010711,2]
[419276536,1775093434911,-150.0,0.000108,2]
[419276537,1775093434921,-784.26,0.00010887,2]
[419276538,1775093434931,-150.0,0.00010992,2]
[419276539,1775093434941,-200.0,0.00010993,2]
[419276540,1775093434951,-500.0,0.00010993,2]
[419276541,1775093434962,-500.0,0.00010993,2]
[419276542,1775093434973,-151.0,0.00010993,2]
[419276543,1775093434982,-500.0,0.00010993,2]
[419276544,1775093434992,-99.82978127,0.00010993,2]
[419276545,1775093435021,-51.17021873,0.00010993,2]
[419276546,1775093435030,-500.0,0.00010993,2]
[419276547,1775093435040,-500.0,0.00010993,2]
[419276548,1775093435049,-500.0,0.00010993,2]
[419276549,1775093435058,-500.0,0.00010993,2]
[419276550,1775093435068,-420.0,0.00010998,2]
[419276551,1775093435078,-1680.0,0.00010998,2]
[419276552,1775093435087,-1004.34724751,0.00011048,2]
[419276553,1775093435096,-1300.0,0.00011074,2]
[419276554,1775093435105,-2067.0,0.000111,5]
[419276555,1775093435115,-1100.0,0.00011181,2]
[419276556,1775093435124,-1037.79,0.00011188,2]
[419276557,1775093435133,-992.55,0.00011507,2]
[419276558,1775093435143,-1124.03,0.00011529,2]
[419276559,1775093435152,-163.14,0.00011616,2]
[419276560,1775093435162,-254.43,0.00011949,2]
[419276561,1775093435172,-255.0,0.00012037,2]
[419276562,1775093435181,-587.0,0.00012098,2]
[419276563,1775093435191,-2351.0,0.00012098,2]
[419276564,1775093435200,-169.1284,0.000122,7]
[419276565,1775093435209,-354.75,0.00012482,2]
[419276566,1775093435219,-4527.1,0.00012645,2]
[419276567,1775093435228,-250.0,0.00013,2]
[419276568,1775093435237,-553.92,0.0001305,2]
[419276569,1775093435247,-433.0,0.0001318,2]
[419276570,1775093435256,-500.0,0.00013237,2]
[419276571,1775093435265,-823.0,0.00013307,2]
[419276572,1775093435274,-190.6961,0.000135,12]
[419276573,1775093435284,-510.0,0.000135,2]
[419276574,1775093435293,-500.0,0.00013598,2]
[419276575,1775093435302,-399.4431236,0.00013598,2]
[419276576,1775093435312,-500.0,0.00013598,2]
[419276577,1775093435320,-64189.87227976,0.00013599,2]
[419276598,1775093437749,-250.24182186,0.00010603,2]
[419276600,1775093437761,-659.2064008,0.00010603,2]
[419276602,1775093437771,-54.30170692,0.00013599,2]
[419276615,1775093437911,-4248.36443745,0.00013599,2]
[419276616,1775093437924,-954.60407587,0.00013599,2]
[419276617,1775093437934,-150.250873,0.00013635,2]
[419276618,1775093437944,-2.82232084,0.00013699,2]
[419276619,1775093437957,-8754.50660287,0.00013699,2]
[419276620,1775093437970,-5618.53107629,0.00013699,2]
[419276621,1775093437980,-150.99,0.00013699,2]
[419276622,1775093437990,-2259.25435609,0.00013699,2]
[419276623,1775093438002,-231.05564391,0.00013699,2]
[419276624,1775093438011,-6648.04,0.00013699,2]
[419276625,1775093438023,-4814.01528366,0.00013699,2]
[419276626,1775093438034,-5185.97471634,0.00013699,2]
[419276627,1775093438044,-500.0,0.00013699,2]
[419276628,1775093438053,-500.0,0.00013699,2]
[419276629,1775093438063,-500.0,0.00013699,2]
[419276630,1775093438073,-500.0,0.00013699,2]
[419276632,1775093438082,-500.0,0.00013699,2]
[419276633,1775093438092,-500.0,0.00013699,2]
[419276634,1775093438102,-500.0,0.00013699,2]
[419276635,1775093438111,-500.0,0.00013699,2]
[419276636,1775093438121,-1861.99236488,0.00013988,2]
[419276637,1775093438133,-3323.2299417,0.00013988,2]
[419276638,1775093438144,-450.54152291,0.00013988,2]
[419276685,1775093440055,-814.38617051,0.00013988,2]
[419276686,1775093440065,-457.47731068,0.00014247,2]
[419276687,1775093440228,-42.52268932,0.00014247,2]
[419276688,1775093440238,-500.0,0.00014247,2]
[419276689,1775093440247,-1000.0,0.00014247,2]
[419276690,1775093440257,-500.0,0.00014247,2]
[419276691,1775093440266,-1000.0,0.00014247,2]
[419276692,1775093440276,-502.49125672,0.00014247,2]
[419276693,1775093440288,-502.76243103,0.00014247,2]
[419276694,1775093440298,-1161.69696273,0.000143,2]
[419276695,1775093440308,-1571.0,0.000144,2]
[419276696,1775093440319,-2809.0,0.000144,2]
[419276697,1775093440330,-444.0,0.00014433,2]
[419276698,1775093440340,-1161.69696272,0.00014478,2]
[419276699,1775093440350,-2897.25,0.0001452,2]
[419276700,1775093440359,-1809.08311162,0.0001452,2]
[419276716,1775093441193,-1510.33688838,0.0001452,2]
[419276717,1775093441212,-2000.0,0.0001452,2]
[419276718,1775093441224,-200.0,0.0001452,2]
[419276719,1775093441233,-6770.7081,0.00014609,2]
[419276720,1775093441242,-998.0,0.00014638,2]
[419276721,1775093441251,-1161.69696272,0.00014656,2]
[419276722,1775093441261,-1500.0,0.00014795,2]
[419276723,1775093441270,-1161.69696272,0.00014833,2]
[419276724,1775093441280,-501.36760974,0.00014873,2]
[419276725,1775093441290,-500.0,0.00014873,2]
[419276726,1775093441299,-403.49616608,0.00014873,2]
[419276727,1775093441308,-500.0,0.00014873,2]
[419276728,1775093441318,-500.79801753,0.00014873,2]
[419276729,1775093441328,-215.0143,0.000149,17]
[419276730,1775093441338,-300.0,0.00015,2]
[419276731,1775093441347,-1161.69696272,0.00015011,2]
[419276732,1775093441356,-500.0,0.00015123,2]
[419276733,1775093441365,-250.0,0.00015123,2]
[419276734,1775093441374,-420.42373885,0.00015123,2]
[419276735,1775093441384,-250.0,0.00015123,2]
[419276736,1775093441394,-500.0,0.00015123,2]
[419276737,1775093441404,-250.0,0.00015123,2]
[419276738,1775093441414,-500.0,0.00015123,2]
[419276739,1775093441423,-250.0,0.00015123,2]
[419276740,1775093441433,-500.0,0.00015123,2]
[419276741,1775093441442,-250.0,0.00015123,2]
[419276742,1775093441452,-500.0,0.00015123,2]
[419276743,1775093441462,-250.0,0.00015123,2]
[419276744,1775093441474,-500.0,0.00015123,2]
[419276745,1775093441483,-151.0,0.00015123,2]
[419276746,1775093441492,-250.0,0.00015123,2]
[419276747,1775093441501,-500.0,0.00015123,2]
[419276748,1775093441511,-250.0,0.00015123,2]
[419276749,1775093441520,-500.0,0.00015123,2]
[419276750,1775093441530,-342.38267358,0.00015123,2]
[419276751,1775093441541,-500.0,0.00015123,2]
[419276752,1775093441550,-500.0,0.00015123,2]
[419276753,1775093441559,-500.0,0.00015123,2]
[419276754,1775093441569,-500.0,0.00015123,2]
[419276755,1775093441578,-174.61919141,0.00015123,2]
[419276756,1775093441589,-500.0,0.00015178,2]
[419276757,1775093441598,-151.0,0.00015178,2]
[419276758,1775093441608,-1161.69696272,0.00015189,2]
[419276759,1775093441618,-500.0,0.00015233,2]
[419276760,1775093441627,-151.0,0.00015233,2]
[419276761,1775093441637,-500.0,0.00015288,2]
[419276762,1775093441646,-151.0,0.00015288,2]
[419276763,1775093441657,-4900.0,0.000153,5]
[419276764,1775093441667,-300.0,0.000153,5]
[419276765,1775093441676,-240.55275149,0.0001532,2]
[419276766,1775093441685,-1007.78816377,0.00015342,2]
[419276767,1775093441694,-500.0,0.00015343,2]
[419276768,1775093441704,-151.0,0.00015343,2]
[419276769,1775093441713,-1161.69696272,0.00015367,2]
[419276770,1775093441725,-160.0,0.00015386,7]
[419276771,1775093441734,-401.272552,0.00015386,7]
[419276772,1775093441744,-642.545105,0.00015386,7]
[419276773,1775093441753,-500.0,0.00015398,2]
[419276774,1775093441762,-151.0,0.00015398,2]
[419276775,1775093441772,-9900.0,0.000154,5]
[419276776,1775093441781,-700.0,0.000154,5]
[419276777,1775093441791,-1000.0,0.00015421,2]
[419276778,1775093441800,-500.0,0.00015453,2]
[419276779,1775093441809,-151.0,0.00015453,2]
[419276780,1775093441819,-500.0,0.00015459,2]
[419276781,1775093441828,-500.0,0.00015459,2]
[419276782,1775093441837,-500.0,0.00015459,2]
[419276783,1775093441846,-500.0,0.00015459,2]
[419276784,1775093441855,-500.0,0.00015459,2]
[419276785,1775093441864,-160.0,0.00015463,7]
[419276786,1775093441873,-598.848144,0.00015463,7]
[419276787,1775093441882,-1037.696288,0.00015463,7]
[419276788,1775093441892,-254.79,0.00015474,2]
[419276789,1775093441901,-160.0,0.00015484,7]
[419276790,1775093441910,-1040.512334,0.00015484,7]
[419276791,1775093441919,-1921.024669,0.00015484,7]
[419276792,1775093441928,-160.0,0.00015484,7]
[419276793,1775093441938,-971.665011,0.00015484,7]
[419276794,1775093441947,-1783.330022,0.00015484,7]
[419276795,1775093441956,-2500.0,0.00015499,2]
[419276796,1775093441966,-2176.46845794,0.000155,5]
[419276807,1775093442837,-546.0,0.000155,5]
[419276808,1775093442848,-12077.53154206,0.000155,5]
[419276809,1775093442857,-1100.0,0.000155,5]
[419276810,1775093442866,-3449.43,0.00015507,2]
[419276811,1775093442876,-500.0,0.00015508,2]
[419276812,1775093442885,-1161.69696272,0.00015544,2]
[419276813,1775093442895,-500.0,0.00015579,2]
[419276814,1775093442904,-2596.06270459,0.0001558,2]
[419276815,1775093442913,-500.0,0.00015599,2]
[419276816,1775093442922,-500.0,0.00015599,2]
[419276817,1775093442932,-500.0,0.00015599,2]
[419276818,1775093442941,-278.99068172,0.00015599,2]
[419276819,1775093442951,-500.0,0.00015599,2]
[419276820,1775093442960,-568.71499802,0.00015599,2]
[419276821,1775093442972,-451.81285936,0.00015599,2]
[419276822,1775093442982,-500.0,0.00015599,2]
[419276823,1775093442991,-19800.0,0.000156,5]
[419276824,1775093443001,-1400.0,0.000156,5]
[419276825,1775093443011,-2317.66049382,0.00015622,2]
[419276826,1775093443021,-2317.66049381,0.00015653,2]
[419276827,1775093443090,-181.08010149,0.00015671,2]
[419276828,1775093443100,-350.0,0.00015673,2]
[419276829,1775093443110,-2809.0,0.0001568,2]
[419276830,1775093443120,-2809.0,0.0001568,2]
[419276831,1775093443130,-1067.68615862,0.0001568,2]
[419276832,1775093443140,-1123.20669062,0.0001568,2]
[419276833,1775093443151,-1071.94525075,0.0001568,2]
[419276834,1775093443161,-1123.07320222,0.0001568,2]
[419276835,1775093443171,-1121.28931517,0.0001568,2]
[419276836,1775093443181,-1022.6558705,0.0001568,2]
[419276837,1775093443191,-1010.15263999,0.0001568,2]
[419276838,1775093443201,-2317.66049381,0.00015684,2]
[419276839,1775093443211,-24700.0,0.000157,5]
[419276840,1775093443223,-1800.0,0.000157,5]
[419276841,1775093443234,-2000.0,0.000157,2]
[419276842,1775093443245,-2317.66049381,0.00015715,2]
[419276843,1775093443254,-1161.69696272,0.00015722,2]
[419276844,1775093443264,-1005.32259693,0.00015729,2]
[419276845,1775093443273,-483.6,0.00015779,2]
[419276846,1775093443283,-483.6,0.00015779,2]
[419276847,1775093443293,-483.6,0.00015779,2]
[419276848,1775093443302,-483.6,0.00015779,2]
[419276849,1775093443312,-483.6,0.00015779,2]
[419276850,1775093443322,-500.0,0.00015799,2]
[419276851,1775093443331,-500.0,0.00015799,2]
[419276852,1775093443341,-500.0,0.00015799,2]
[419276853,1775093443351,-500.0,0.00015799,2]
[419276854,1775093443360,-500.0,0.00015799,2]
[419276856,1775093443370,-565.13343293,0.00015799,2]
[419276857,1775093443380,-1000.0,0.000158,2]
[419276859,1775093443389,-20592.8402,0.000158,2]
[419276861,1775093443400,-4900.0,0.000158,5]
[419276862,1775093443410,-300.0,0.000158,5]
[419276863,1775093443420,-2000.0,0.000158,2]
[419276864,1775093443430,-2273.274,0.0001584,2]
[419276865,1775093443441,-173.313,0.00015855,2]
[419276866,1775093443451,-500.0,0.00015879,2]
[419276867,1775093443461,-500.0,0.00015879,2]
[419276868,1775093443473,-2000.0,0.0001589,2]
[419276869,1775093443483,-3449.43,0.00015895,2]
[419276870,1775093443493,-500.0,0.00015899,2]
[419276871,1775093443503,-572.88055052,0.00015899,2]
[419276872,1775093443513,-500.0,0.00015899,2]
[419276873,1775093443523,-500.0,0.00015899,2]
[419276874,1775093443532,-500.0,0.00015899,2]
[419276875,1775093443542,-5000.0,0.000159,2]
[419276876,1775093443552,-4900.0,0.000159,5]
[419276877,1775093443562,-1161.69696272,0.000159,2]
[419276878,1775093443573,-300.0,0.000159,5]
[419276880,1775093443583,-309.95115014,0.000159,2]
[419276882,1775093443593,-350.0,0.00015944,2]
[419276883,1775093443603,-746.0,0.00015973,2]
[419276884,1775093443613,-497.49905769,0.00015973,2]
[419276885,1775093443624,-502.5245209,0.00015973,2]
[419276887,1775093443635,-168.26617594,0.00015984,2]
[419276889,1775093443646,-198.96816428,0.00015984,2]
[419276890,1775093443657,-194.23904824,0.00015984,2]
[419276891,1775093443667,-172.59744176,0.00015984,2]
[419276892,1775093443677,-261.8126398,0.00015984,2]
[419276893,1775093443687,-1375.4137091,0.00015985,2]
[419276894,1775093443700,-3148.9663208,0.00015985,2]
[419276895,1775093443710,-794.7977617,0.00015985,2]
[419276896,1775093443724,-1786.0,0.0001599,5]
[419276897,1775093443736,-254.79,0.0001599,2]
[419276898,1775093443746,-500.0,0.00015998,2]
[419276899,1775093443756,-500.0,0.00015998,2]
[419276900,1775093443766,-500.0,0.00015998,2]
[419276901,1775093443777,-500.0,0.00015998,2]
[419276902,1775093443786,-500.0,0.00015999,2]
[419276903,1775093443797,-500.0,0.00015999,2]
[419276904,1775093443807,-500.0,0.00015999,2]
[419276905,1775093443818,-500.0,0.00015999,2]
[419276906,1775093443828,-500.0,0.00015999,2]
[419276907,1775093443838,-500.0,0.00015999,2]
[419276908,1775093443849,-367.38,0.00015999,2]
[419276909,1775093443859,-500.0,0.00015999,2]
[419276910,1775093443869,-500.0,0.00015999,2]
[419276911,1775093443878,-500.0,0.00015999,2]
[419276912,1775093443888,-500.0,0.00015999,2]
[419276913,1775093443898,-500.0,0.00015999,2]
[419276914,1775093443908,-500.0,0.00015999,2]
[419276915,1775093443919,-500.0,0.00015999,2]
[419276916,1775093443929,-500.0,0.00015999,2]
[419276917,1775093443939,-500.0,0.00015999,2]
[419276918,1775093443949,-500.0,0.00015999,2]
[419276919,1775093443959,-500.0,0.00015999,2]
[419276921,1775093443971,-500.0,0.00015999,2]
[419276922,1775093443982,-500.0,0.00015999,2]
[419276923,1775093443992,-500.0,0.00015999,2]
[419276924,1775093444005,-500.0,0.00015999,2]
[419276926,1775093444016,-500.0,0.00015999,2]
[419276927,1775093444026,-500.0,0.00015999,2]
[419276928,1775093444036,-500.0,0.00015999,2]
[419276929,1775093444047,-500.0,0.00015999,2]
[419276930,1775093444057,-500.0,0.00015999,2]
[419276931,1775093444068,-500.0,0.00015999,2]
[419276932,1775093444078,-500.0,0.00015999,2]
[419276933,1775093444088,-500.0,0.00015999,2]
[419276934,1775093444099,-500.0,0.00015999,2]
[419276935,1775093444108,-500.0,0.00015999,2]
[419276936,1775093444118,-500.0,0.00015999,2]
[419276937,1775093444128,-500.0,0.00015999,2]
[419276938,1775093444138,-500.0,0.00015999,2]
[419276939,1775093444148,-216.89300511,0.00015999,2]
[419276940,1775093444158,-500.0,0.00015999,2]
[419276941,1775093444167,-500.0,0.00015999,2]
[419276942,1775093444177,-500.0,0.00015999,2]
[419276943,1775093444187,-500.0,0.00015999,2]
[419276944,1775093444196,-500.0,0.00015999,2]
[419276945,1775093444207,-527.11,0.00015999,2]
[419276946,1775093444218,-500.0,0.00015999,2]
[419276947,1775093444231,-500.0,0.00015999,2]
[419276948,1775093444241,-500.0,0.00015999,2]
[419276949,1775093444251,-500.0,0.00015999,2]
[419276950,1775093444261,-500.0,0.00015999,2]
[419276951,1775093444271,-500.0,0.00015999,2]
[419276952,1775093444281,-500.0,0.00015999,2]
[419276953,1775093444290,-500.0,0.00015999,2]
[419276954,1775093444300,-500.0,0.00015999,2]
[419276955,1775093444310,-500.0,0.00015999,2]
[419276956,1775093444319,-500.0,0.00015999,2]
[419276957,1775093444330,-500.0,0.00015999,2]
[419276958,1775093444340,-500.0,0.00015999,2]
[419276959,1775093444350,-500.0,0.00015999,2]
[419276960,1775093444360,-500.0,0.00015999,2]
[419276961,1775093444371,-500.0,0.00015999,2]
[419276962,1775093444382,-500.0,0.00015999,2]
[419276963,1775093444393,-500.0,0.00015999,2]
[419276964,1775093444404,-500.0,0.00015999,2]
[419276965,1775093444418,-500.0,0.00015999,2]
[419276966,1775093444429,-500.0,0.00015999,2]
[419276967,1775093444441,-416.63,0.00015999,2]
[419276968,1775093444451,-500.0,0.00015999,2]
[419276969,1775093444462,-500.0,0.00015999,2]
[419276970,1775093444479,-500.0,0.00015999,2]
[419276971,1775093444493,-500.0,0.00015999,2]
[419276972,1775093444504,-152.47470356,0.00015999,2]
[419276973,1775093444518,-306.98979742,0.00015999,2]
[419276974,1775093444529,-500.0,0.00015999,2]
[419276975,1775093444541,-500.0,0.00015999,2]
[419276976,1775093444551,-1973.0,0.00016,5]
[419276977,1775093444560,-97484.95302807,0.00016,2]
[419276979,1775093445745,-887.00102635,0.00016,2]
[419277105,1775093448397,-1228277.98236989,0.00016,2]
[419277106,1775093448407,-1766885.34457134,0.00016,2]
[419277107,1775093448417,-2750208.22328755,0.00016,2]
[419277108,1775093448427,-45692.22403011,0.00016,2]
[419277109,1775093448437,-160.0,0.00016,30]
[419277110,1775093448446,-254237.90917568,0.00016,2]
[419277111,1775093448456,-139344.95521839,0.00016,2]
[419277112,1775093448465,-319977.16875878,0.00016,2]
[419277113,1775093448481,-1104257.4922356,0.00016,2]
[419277114,1775093448500,-4694.93067227,0.00016,2]
[419277115,1775093448511,-18648.25161462,0.00016,2]
[419277116,1775093448522,-550.8927455,0.00016,2]
[419277117,1775093448532,-989.29856,0.00016,2]
[419277118,1775093448543,-290.17800023,0.00016,2]
[419277119,1775093448554,-250.72596144,0.00016,2]
[419277120,1775093448565,-42094.69563005,0.00016,2]
[419277121,1775093448596,-11123.29449348,0.00016,2]
[419277122,1775093448739,-391.57,0.0001567,2]
[419277123,1775093448748,-391.57,0.0001588,2]
[419277124,1775093448758,-391.57,0.0001599,2]
[419277125,1775093448767,-391.57,0.0001599,2]
[419277126,1775093448776,-391.57,0.0001599,2]
[419277127,1775093448785,-1002.29000001,0.00016,2]
[419277128,1775093448870,-10642.64944617,0.00016,2]
[419277129,1775093448881,-12852.35667256,0.00016,2]
[419277130,1775093448892,-3172.05233947,0.00016,2]
[419277131,1775093448941,-150.0,0.00015,2]
[419277132,1775093448950,-504.45699714,0.00016,2]
[419277133,1775093448961,-318.62067846,0.00016,2]
[419277134,1775093448973,-3378.8949213,0.00016,2]
[419277141,1775093550307,165.68,0.00016,120]
[419277158,1775093920943,150.0,0.00016,120]
[419277218,1775094632045,-232.34,0.00011368,2]
[419277220,1775094632055,-195.0,0.00011447,2]
[419277222,1775094632064,-272.66,0.00011526,2]
[419277224,1775094632076,-327.34,0.00011526,2]
[419277225,1775094632085,-195.0,0.00011684,2]
[419277226,1775094632094,-343.17643038,0.00011831,2]
[419277237,1775094632227,-4080.02257703,0.00011831,2]
[419277238,1775094632238,-2803.70066373,0.00011831,2]
[419277245,1775094632817,-3585.65993846,0.00011831,2]
[419277246,1775094632947,-1632.71658275,0.00011831,2]
[419277247,1775094632959,-766.01991102,0.00011831,2]
[419277248,1775094632971,-344.21686775,0.00011831,2]
[419277249,1775094633064,-798.8542179,0.00011831,2]
[419277250,1775094633079,-292.91733824,0.00011831,2]
[419277251,1775094633091,-3330.66848899,0.00011831,2]
[419277252,1775094633101,-422.74540918,0.00011831,2]
[419277253,1775094633111,-195.0,0.0001196,2]
[419277254,1775094633120,-1005.0,0.00012,2]
[419277255,1775094633130,-1200.0,0.00012143,2]
[419277256,1775094633140,-249.0,0.00012143,2]
[419277257,1775094633149,-300.0,0.00012144,2]
[419277258,1775094633159,-300.0,0.00012144,2]
[419277259,1775094633169,-195.0,0.00012505,2]
[419277260,1775094633184,-600.0,0.00012505,2]
[419277261,1775094633193,-195.0,0.00012505,2]
[419277262,1775094633203,-250.0,0.00012505,2]
[419277263,1775094633212,-380.44020132,0.00013077,2]
[419277264,1775094633222,-227.25348961,0.00013175,2]
[419277265,1775094633232,-150.0,0.00013199,2]
[419277266,1775094633241,-291.0,0.00013329,2]
[419277267,1775094633251,-1680.0,0.00013357,2]
[419277268,1775094633260,-517.0,0.000135,2]
[419277269,1775094633270,-150.0,0.000136,2]
[419277270,1775094633279,-166.66,0.00013699,2]
[419277271,1775094633288,-304.38,0.00013714,2]
[419277272,1775094633299,-1500.0,0.00013857,2]
[419277273,1775094633308,-185.44,0.00013945,2]
[419277274,1775094633319,-166.66,0.00013953,2]
[419277275,1775094633329,-2516.54,0.0001397,2]
[419277276,1775094633338,-893.55,0.00013972,2]
[419277277,1775094633347,-164.78,0.00014038,2]
[419277278,1775094633357,-6685.66,0.00014077,2]
[419277279,1775094633367,-500.57301202,0.00014083,2]
[419277280,1775094633376,-166.66,0.00014207,2]
[419277281,1775094633386,-166.66,0.00014462,2]
[419277282,1775094633395,-167.47277636,0.00014484,2]
[419277283,1775094633405,-150.99,0.00014504,2]
[419277284,1775094633414,-4999.99,0.00014504,2]
[419277285,1775094633424,-210.97,0.00014598,2]
[419277286,1775094633436,-1000.0,0.00014609,2]
[419277287,1775094633447,-1600.0,0.00014643,2]
[419277288,1775094633456,-893.55,0.00014671,2]
[419277289,1775094633466,-150.0,0.00014692,2]
[419277290,1775094633475,-744.0,0.00014693,2]
[419277291,1775094633484,-166.66,0.00014716,2]
[419277292,1775094633493,-168.8588,0.000149,7]
[419277293,1775094633503,-629.87283673,0.0001495,2]
[419277294,1775094633512,-166.66,0.0001497,2]
[419277295,1775094633522,-391.23094864,0.00015,2]
[419277296,1775094633534,-500.0,0.0001515,2]
[419277297,1775094633544,-500.0,0.0001515,2]
[419277298,1775094633556,-500.0,0.0001515,2]
[419277299,1775094633566,-500.0,0.0001515,2]
[419277300,1775094633578,-174.61919141,0.0001515,2]
[419277301,1775094633590,-500.0,0.0001515,2]
[419277302,1775094633600,-500.0,0.0001515,2]
[419277303,1775094633613,-500.0,0.0001515,2]
[419277304,1775094633624,-500.0,0.0001515,2]
[419277305,1775094633635,-500.0,0.0001515,2]
[419277306,1775094633645,-500.0,0.0001515,2]
[419277307,1775094633654,-500.0,0.0001515,2]
[419277308,1775094633663,-277.998644,0.000152,2]
[419277309,1775094633672,-9970.22,0.00015205,2]
[419277310,1775094633683,-350.0,0.00015224,2]
[419277311,1775094633693,-167.24,0.00015274,2]
[419277312,1775094633702,-322.14434517,0.0001532,2]
[419277313,1775094633712,-893.55,0.00015369,2]
[419277314,1775094633723,-500.0,0.00015452,2]
[419277315,1775094633733,-500.0,0.00015452,2]
[419277316,1775094633742,-500.0,0.00015452,2]
[419277317,1775094633752,-500.0,0.00015452,2]
[419277318,1775094633762,-500.0,0.00015573,2]
[419277319,1775094633771,-510.95406537,0.00015573,2]
[419277320,1775094633781,-225.42759078,0.00015573,2]
[419277321,1775094633790,-34784.58624085,0.00015586,2]
[419277322,1775094633805,-1631.76845915,0.00015586,2]
[419277323,1775094633814,-5151.39970207,0.00015586,2]
[419277332,1775094637968,-448.60029793,0.00015586,2]
[419277333,1775094637979,-2000.0,0.000156,2]
[419277334,1775094637989,-500.0,0.00015606,2]
[419277335,1775094637999,-500.0,0.00015606,2]
[419277336,1775094638009,-500.0,0.00015606,2]
[419277337,1775094638019,-199.86239494,0.00015606,2]
[419277338,1775094638028,-500.0,0.00015606,2]
[419277339,1775094638038,-500.0,0.00015606,2]
[419277340,1775094638048,-500.0,0.00015606,2]
[419277341,1775094638057,-500.0,0.00015606,2]
[419277342,1775094638066,-500.0,0.00015606,2]
[419277343,1775094638076,-500.0,0.00015606,2]
[419277344,1775094638085,-500.0,0.00015606,2]
[419277345,1775094638094,-500.0,0.00015606,2]
[419277346,1775094638104,-500.0,0.00015606,2]
[419277347,1775094638113,-500.0,0.00015606,2]
[419277348,1775094638123,-500.0,0.00015606,2]
[419277349,1775094638132,-500.0,0.00015606,2]
[419277350,1775094638142,-500.0,0.00015606,2]
[419277351,1775094638151,-500.0,0.00015606,2]
[419277352,1775094638160,-500.0,0.00015606,2]
[419277353,1775094638170,-500.0,0.00015606,2]
[419277354,1775094638180,-5600.0,0.00015607,2]
[419277355,1775094638191,-166.04315073,0.00015684,2]